fUST/lending_fUST_20250514
["ID","MTS","AMOUNT","RATE_DAILY","PERIOD"]
[360968749,1747170651806,-1011.13,0.00013972,2]
[360968750,1747170651815,-400.0,0.00013972,2]
[360968751,1747170651825,-711.21,0.00013972,2]
[360968752,1747170651835,-400.0,0.00013972,2]
[360968753,1747170651845,-1630.66,0.00013972,2]
[360968754,1747170651854,-2167.44,0.00013972,2]
[360968755,1747170651864,-9023.34,0.00013972,2]
[360968756,1747170651874,-4728.2,0.00013972,2]
[360968757,1747170651884,-993.08,0.00013972,2]
[360968758,1747170651894,-431.3,0.00013972,2]
[360968759,1747170651904,-597.91,0.00013972,2]
[360968760,1747170651915,-400.0,0.00013972,2]
[360968761,1747170651926,-400.0,0.00013972,2]
[360968762,1747170651937,-400.0,0.00013972,2]
[360968763,1747170651947,-3149.57,0.00013972,2]
[360968764,1747170651957,-2324.49,0.00013972,2]
[360968765,1747170651967,-400.0,0.00013972,2]
[360968766,1747170651977,-2481.77,0.00013972,2]
[360968767,1747170651988,-400.0,0.00013972,2]
[360968768,1747170651998,-528.12,0.00013972,2]
[360968769,1747170652008,-3078.16,0.00013972,2]
[360968770,1747170652018,-400.0,0.00013972,2]
[360968771,1747170652027,-400.0,0.00013972,2]
[360968772,1747170652037,-400.0,0.00013972,2]
[360968773,1747170652047,-151.0,0.00013972,2]
[360968774,1747170652056,-151.0,0.00013972,2]
[360968775,1747170652069,-500.0,0.00013972,2]
[360968776,1747170652079,-400.0,0.00013972,2]
[360968777,1747170652088,-539.48,0.00013972,2]
[360968778,1747170652098,-400.0,0.00013972,2]
[360968779,1747170652108,-523.88,0.00013972,2]
[360968780,1747170652118,-400.0,0.00013972,2]
[360968781,1747170652127,-400.0,0.00013972,2]
[360968782,1747170652137,-1027.12,0.00013972,2]
[360968783,1747170652147,-400.0,0.00013972,2]
[360968784,1747170652156,-4742.34,0.00013972,2]
[360968785,1747170652167,-400.0,0.00013972,2]
[360968786,1747170652176,-3726.72,0.00013972,2]
[360968787,1747170652186,-400.0,0.00013972,2]
[360968788,1747170652196,-621.34,0.00013972,2]
[360968789,1747170652206,-889.89,0.00013972,2]
[360968790,1747170652216,-400.0,0.00013972,2]
[360968791,1747170652226,-400.0,0.00013972,2]
[360968792,1747170652235,-444.97,0.00013972,2]
[360968793,1747170652245,-400.0,0.00013972,2]
[360968794,1747170652255,-525.46551563,0.00013972,2]
[360968795,1747170652265,-513.16230889,0.00013972,2]
[360968796,1747170652275,-1341.51,0.00013972,2]
[360968797,1747170652285,-963.44,0.00013972,2]
[360968798,1747170652295,-400.0,0.00013972,2]
[360968799,1747170652305,-400.0,0.00013972,2]
[360968800,1747170652317,-731.67,0.00013972,2]
[360968801,1747170652327,-400.0,0.00013972,2]
[360968802,1747170652338,-1018.53,0.00013972,2]
[360968803,1747170652348,-400.0,0.00013972,2]
[360968804,1747170652359,-400.0,0.00013972,2]
[360968805,1747170652370,-697.16,0.00013972,2]
[360968806,1747170652380,-400.0,0.00013972,2]
[360968807,1747170652390,-1038.25,0.00013972,2]
[360968808,1747170652399,-1891.45,0.00013972,2]
[360968809,1747170652409,-834.12,0.00013972,2]
[360968810,1747170652418,-429.22,0.00013972,2]
[360968811,1747170652428,-1466.05,0.00013972,2]
[360968812,1747170652439,-400.0,0.00013972,2]
[360968813,1747170652448,-11932.18,0.00013972,2]
[360968814,1747170652457,-400.0,0.00013972,2]
[360968815,1747170652469,-1881.27,0.00013972,2]
[360968816,1747170652481,-400.0,0.00013972,2]
[360968817,1747170652491,-500.0,0.00013973,2]
[360968818,1747170652501,-160.0,0.00014011,2]
[360968819,1747170652511,-422.24190663,0.00014011,2]
[360968820,1747170652521,-160.0,0.00014011,2]
[360968821,1747170652530,-602.37064157,0.00014013,2]
[360968822,1747170652540,-150.0,0.00014092,2]
[360968823,1747170652551,-546.0,0.00014092,2]
[360968824,1747170652561,-708.0,0.00014092,2]
[360968825,1747170652571,-2237.0,0.00014092,2]
[360968826,1747170652582,-151.0,0.00014246,2]
[360968827,1747170652592,-151.0,0.00014246,2]
[360968828,1747170652602,-151.0,0.00014246,2]
[360968829,1747170652611,-151.0,0.00014246,2]
[360968830,1747170652622,-151.0,0.00014246,2]
[360968831,1747170652632,-151.0,0.00014246,2]
[360968832,1747170652641,-151.0,0.00014246,2]
[360968833,1747170652651,-151.0,0.00014246,2]
[360968834,1747170652660,-151.0,0.00014246,2]
[360968835,1747170652670,-401.61587039,0.00014246,2]
[360968836,1747170652680,-400.0,0.00014246,2]
[360968837,1747170652690,-201.27677181,0.00014246,2]
[360968838,1747170652699,-400.0,0.00014246,2]
[360968839,1747170652709,-502.49212589,0.00014246,2]
[360968840,1747170652719,-1206.29,0.00014246,2]
[360968841,1747170652729,-400.0,0.00014246,2]
[360968842,1747170652738,-400.0,0.00014246,2]
[360968843,1747170652749,-400.0,0.00014246,2]
[360968844,1747170652759,-400.0,0.00014246,2]
[360968845,1747170652769,-400.0,0.00014246,2]
[360968846,1747170652778,-444.66,0.00014246,2]
[360968847,1747170652865,-470.13,0.00014246,2]
[360968848,1747170652874,-400.0,0.00014246,2]
[360968849,1747170652883,-547.65,0.00014246,2]
[360968850,1747170652893,-456.78,0.00014246,2]
[360968851,1747170652902,-1280.32,0.00014246,2]
[360968852,1747170652913,-400.0,0.00014246,2]
[360968853,1747170652923,-700.22,0.00014246,2]
[360968854,1747170652932,-400.0,0.00014246,2]
[360968855,1747170652941,-400.0,0.00014246,2]
[360968856,1747170652950,-400.0,0.00014246,2]
[360968857,1747170652959,-400.0,0.00014246,2]
[360968858,1747170652969,-444.55,0.00014246,2]
[360968859,1747170652979,-400.0,0.00014246,2]
[360968860,1747170652989,-400.0,0.00014246,2]
[360968861,1747170652998,-400.0,0.00014246,2]
[360968862,1747170653007,-400.0,0.00014246,2]
[360968863,1747170653016,-400.0,0.00014246,2]
[360968864,1747170653026,-400.0,0.00014246,2]
[360968865,1747170653036,-1065.25,0.00014246,2]
[360968866,1747170653049,-400.0,0.00014246,2]
[360968867,1747170653058,-423.16,0.00014246,2]
[360968868,1747170653067,-400.0,0.00014246,2]
[360968869,1747170653076,-400.0,0.00014246,2]
[360968870,1747170653086,-400.0,0.00014246,2]
[360968871,1747170653095,-883.71,0.00014246,2]
[360968872,1747170653104,-1505.54,0.00014246,2]
[360968873,1747170653113,-400.0,0.00014246,2]
[360968874,1747170653123,-400.0,0.00014246,2]
[360968875,1747170653133,-400.0,0.00014246,2]
[360968876,1747170653142,-400.0,0.00014246,2]
[360968877,1747170653151,-239.80879978,0.00014246,2]
[360968878,1747170653161,-400.0,0.00014246,2]
[360968879,1747170653169,-709.69,0.00014246,2]
[360968880,1747170653179,-728.81,0.00014246,2]
[360968881,1747170653188,-400.0,0.00014246,2]
[360968882,1747170653197,-579.18,0.00014246,2]
[360968883,1747170653207,-400.0,0.00014246,2]
[360968884,1747170653216,-400.0,0.00014246,2]
[360968885,1747170653227,-538.8,0.00014246,2]
[360968886,1747170653237,-553.09,0.00014246,2]
[360968887,1747170653246,-400.0,0.00014246,2]
[360968888,1747170653256,-400.0,0.00014246,2]
[360968889,1747170653265,-929.28,0.00014246,2]
[360968890,1747170653275,-460.39,0.00014246,2]
[360968891,1747170653284,-418.24,0.00014246,2]
[360968892,1747170653294,-436.76,0.00014246,2]
[360968893,1747170653304,-402.29,0.00014246,2]
[360968894,1747170653314,-400.0,0.00014246,2]
[360968895,1747170653324,-400.0,0.00014246,2]
[360968896,1747170653333,-1060.97,0.00014246,2]
[360968897,1747170653344,-400.0,0.00014246,2]
[360968898,1747170653353,-400.0,0.00014246,2]
[360968899,1747170653362,-400.0,0.00014246,2]
[360968900,1747170653372,-400.0,0.00014246,2]
[360968901,1747170653383,-400.0,0.00014246,2]
[360968902,1747170653392,-400.0,0.00014246,2]
[360968903,1747170653402,-741.59,0.00014246,2]
[360968904,1747170653411,-400.0,0.00014246,2]
[360968905,1747170653421,-446.86,0.00014246,2]
[360968906,1747170653430,-1107.47,0.00014246,2]
[360968907,1747170653439,-1008.99,0.00014246,2]
[360968908,1747170653449,-475.71,0.00014246,2]
[360968909,1747170653458,-400.0,0.00014246,2]
[360968910,1747170653471,-482.96,0.00014246,2]
[360968911,1747170653481,-400.0,0.00014246,2]
[360968912,1747170653491,-400.0,0.00014246,2]
[360968913,1747170653501,-400.0,0.00014246,2]
[360968914,1747170653511,-1077.56,0.00014246,2]
[360968915,1747170653520,-400.0,0.00014246,2]
[360968916,1747170653531,-434.62,0.00014246,2]
[360968917,1747170653541,-455.75,0.00014246,2]
[360968918,1747170653551,-382.88,0.00014246,2]
[360968919,1747170653564,-400.0,0.00014246,2]
[360968920,1747170653574,-407.08,0.00014246,2]
[360968921,1747170653584,-400.0,0.00014246,2]
[360968922,1747170653593,-400.0,0.00014246,2]
[360968923,1747170653603,-1478.59,0.00014246,2]
[360968924,1747170653614,-949.34,0.00014246,2]
[360968925,1747170653623,-506.14,0.00014246,2]
[360968926,1747170653635,-400.0,0.00014246,2]
[360968927,1747170653649,-400.0,0.00014246,2]
[360968928,1747170653662,-939.41,0.00014246,2]
[360968929,1747170653675,-652.93,0.00014246,2]
[360968930,1747170653684,-430.43,0.00014246,2]
[360968931,1747170653694,-400.0,0.00014246,2]
[360968932,1747170653704,-443.29,0.00014246,2]
[360968933,1747170653713,-644.06,0.00014246,2]
[360968934,1747170653722,-400.0,0.00014246,2]
[360968935,1747170653733,-526.41,0.00014246,2]
[360968936,1747170653742,-400.0,0.00014246,2]
[360968937,1747170653753,-703.73,0.00014246,2]
[360968938,1747170653762,-400.0,0.00014246,2]
[360968939,1747170653772,-153.00043469,0.00014246,2]
[360968940,1747170653781,-1044.8,0.00014246,2]
[360968941,1747170653791,-400.0,0.00014246,2]
[360968942,1747170653801,-261.6489391,0.00014246,2]
[360968943,1747170653811,-400.0,0.00014246,2]
[360968944,1747170653821,-400.0,0.00014246,2]
[360968945,1747170653831,-400.0,0.00014246,2]
[360968946,1747170653841,-400.0,0.00014246,2]
[360968947,1747170653851,-400.0,0.00014246,2]
[360968948,1747170653861,-659.42,0.00014246,2]
[360968949,1747170653871,-456.41,0.00014246,2]
[360968950,1747170653881,-400.0,0.00014246,2]
[360968951,1747170653891,-400.0,0.00014246,2]
[360968952,1747170653901,-400.0,0.00014246,2]
[360968953,1747170653911,-561.87,0.00014246,2]
[360968954,1747170653921,-400.0,0.00014246,2]
[360968955,1747170653930,-400.0,0.00014246,2]
[360968956,1747170653940,-673.73,0.00014246,2]
[360968957,1747170653950,-400.0,0.00014246,2]
[360968958,1747170653959,-400.0,0.00014246,2]
[360968959,1747170653969,-1233.05,0.00014246,2]
[360968960,1747170653978,-400.0,0.00014246,2]
[360968961,1747170653987,-429.08,0.00014246,2]
[360968962,1747170653997,-746.75,0.00014246,2]
[360968963,1747170654007,-580.68,0.00014246,2]
[360968964,1747170654017,-400.0,0.00014246,2]
[360968965,1747170654027,-400.0,0.00014246,2]
[360968966,1747170654037,-500.0,0.00014246,2]
[360968967,1747170654046,-400.0,0.00014246,2]
[360968968,1747170654058,-660.44,0.00014246,2]
[360968969,1747170654068,-400.0,0.00014246,2]
[360968970,1747170654077,-400.0,0.00014246,2]
[360968971,1747170654087,-2256.88,0.00014246,2]
[360968972,1747170654096,-565.14,0.00014246,2]
[360968973,1747170654105,-400.0,0.00014246,2]
[360968974,1747170654114,-1892.56,0.00014246,2]
[360968975,1747170654123,-400.0,0.00014246,2]
[360968976,1747170654132,-614.14,0.00014246,2]
[360968977,1747170654142,-400.0,0.00014246,2]
[360968978,1747170654151,-1373.76,0.00014246,2]
[360968979,1747170654160,-400.0,0.00014246,2]
[360968980,1747170654170,-400.0,0.00014246,2]
[360968981,1747170654180,-400.0,0.00014246,2]
[360968982,1747170654189,-400.0,0.00014246,2]
[360968983,1747170654199,-1124.8,0.00014246,2]
[360968984,1747170654209,-3024.19,0.00014246,2]
[360968985,1747170654218,-400.0,0.00014246,2]
[360968986,1747170654229,-400.0,0.00014246,2]
[360968987,1747170654239,-729.26,0.00014246,2]
[360968988,1747170654249,-400.0,0.00014246,2]
[360968989,1747170654258,-400.0,0.00014246,2]
[360968990,1747170654269,-400.0,0.00014246,2]
[360968991,1747170654279,-508.02,0.00014246,2]
[360968992,1747170654289,-400.0,0.00014246,2]
[360968993,1747170654300,-711.42,0.00014246,2]
[360968994,1747170654310,-2724.28,0.00014246,2]
[360968995,1747170654319,-400.0,0.00014246,2]
[360968996,1747170654329,-458.26,0.00014246,2]
[360968997,1747170654338,-400.0,0.00014246,2]
[360968998,1747170654348,-1016.43,0.00014246,2]
[360968999,1747170654357,-400.0,0.00014246,2]
[360969000,1747170654367,-2170.72,0.00014246,2]
[360969001,1747170654377,-400.0,0.00014246,2]
[360969002,1747170654386,-427.82,0.00014246,2]
[360969003,1747170654396,-1945.31,0.00014246,2]
[360969004,1747170654406,-151.0,0.00014246,2]
[360969005,1747170654415,-400.0,0.00014246,2]
[360969006,1747170654425,-151.0,0.00014246,2]
[360969007,1747170654435,-205.285233,0.00014246,2]
[360969008,1747170654445,-2530.68,0.00014246,2]
[360969009,1747170654454,-1492.43,0.00014246,2]
[360969010,1747170654466,-648.44,0.00014246,2]
[360969011,1747170654478,-8567.76,0.00014246,2]
[360969012,1747170654488,-1609.47,0.00014246,2]
[360969013,1747170654498,-400.0,0.00014246,2]
[360969014,1747170654507,-2936.21,0.00014246,2]
[360969015,1747170654517,-400.0,0.00014246,2]
[360969016,1747170654526,-400.0,0.00014246,2]
[360969017,1747170654536,-400.0,0.00014246,2]
[360969018,1747170654546,-400.0,0.00014246,2]
[360969019,1747170654557,-400.0,0.00014246,2]
[360969020,1747170654567,-400.0,0.00014246,2]
[360969021,1747170654576,-174.44,0.00014246,2]
[360969022,1747170654585,-400.0,0.00014246,2]
[360969023,1747170654595,-1486.91,0.00014246,2]
[360969024,1747170654605,-2168.01,0.00014246,2]
[360969025,1747170654614,-400.0,0.00014246,2]
[360969026,1747170654624,-400.0,0.00014246,2]
[360969027,1747170654633,-1950.14,0.00014246,2]
[360969028,1747170654644,-604.47,0.00014246,2]
[360969029,1747170654653,-648.32,0.00014246,2]
[360969030,1747170654663,-400.0,0.00014246,2]
[360969031,1747170654672,-2011.2557955,0.00014246,2]
[360969032,1747170654991,-272.3742045,0.00014246,2]
[360969033,1747170655000,-400.0,0.00014246,2]
[360969034,1747170655010,-400.0,0.00014246,2]
[360969035,1747170655019,-400.0,0.00014246,2]
[360969036,1747170655029,-1270.33,0.00014246,2]
[360969037,1747170655039,-869.8,0.00014246,2]
[360969038,1747170655048,-400.0,0.00014246,2]
[360969039,1747170655057,-1323.74,0.00014246,2]
[360969040,1747170655067,-151.0,0.00014246,2]
[360969041,1747170655076,-151.0,0.00014246,2]
[360969042,1747170655085,-400.0,0.00014246,2]
[360969043,1747170655095,-232.863128,0.00014246,2]
[360969044,1747170655105,-1514.17,0.00014246,2]
[360969045,1747170655114,-429.42,0.00014246,2]
[360969046,1747170655123,-400.0,0.00014246,2]
[360969047,1747170655132,-400.0,0.00014246,2]
[360969048,1747170655142,-753.47,0.00014246,2]
[360969049,1747170655151,-634.51,0.00014246,2]
[360969050,1747170655161,-7393.72,0.00014246,2]
[360969051,1747170655170,-400.0,0.00014246,2]
[360969052,1747170655180,-255.63189709,0.00014246,2]
[360969053,1747170655190,-400.0,0.00014246,2]
[360969054,1747170655199,-400.0,0.00014246,2]
[360969055,1747170655209,-400.0,0.00014246,2]
[360969056,1747170655219,-400.0,0.00014246,2]
[360969057,1747170655228,-400.0,0.00014246,2]
[360969058,1747170655238,-7597.28,0.00014246,2]
[360969059,1747170655248,-588.16,0.00014246,2]
[360969060,1747170655257,-539.43093758,0.00014246,2]
[360969061,1747170655267,-2150.48,0.00014246,2]
[360969062,1747170655276,-400.0,0.00014246,2]
[360969063,1747170655285,-488.36,0.00014246,2]
[360969064,1747170655295,-703.53,0.00014246,2]
[360969065,1747170655305,-3968.17,0.00014246,2]
[360969066,1747170655314,-2001.37,0.00014246,2]
[360969067,1747170655324,-400.0,0.00014246,2]
[360969068,1747170655334,-1508.42,0.00014246,2]
[360969069,1747170655343,-670.03,0.00014246,2]
[360969070,1747170655353,-758.2,0.00014246,2]
[360969071,1747170655362,-400.0,0.00014246,2]
[360969072,1747170655373,-400.0,0.00014246,2]
[360969073,1747170655383,-400.0,0.00014246,2]
[360969074,1747170655393,-1033.89,0.00014246,2]
[360969075,1747170655403,-773.84,0.00014246,2]
[360969076,1747170655412,-400.0,0.00014246,2]
[360969077,1747170655421,-418.38,0.00014246,2]
[360969078,1747170655431,-1636.17,0.00014246,2]
[360969079,1747170655440,-400.0,0.00014246,2]
[360969080,1747170655450,-870.81,0.00014246,2]
[360969081,1747170655459,-819.29,0.00014246,2]
[360969082,1747170655469,-1551.73,0.00014246,2]
[360969083,1747170655482,-400.0,0.00014246,2]
[360969084,1747170655491,-186.56125133,0.00014246,2]
[360969085,1747170655500,-412.96,0.00014246,2]
[360969086,1747170655510,-6897.94,0.00014246,2]
[360969087,1747170655521,-1381.31,0.00014246,2]
[360969088,1747170655531,-400.0,0.00014246,2]
[360969089,1747170655541,-1309.67,0.00014246,2]
[360969090,1747170655551,-678.82,0.00014246,2]
[360969091,1747170655561,-400.0,0.00014246,2]
[360969092,1747170655571,-709.4,0.00014246,2]
[360969093,1747170655580,-1614.18,0.00014246,2]
[360969094,1747170655590,-457.87,0.00014246,2]
[360969095,1747170655599,-891.06,0.00014246,2]
[360969096,1747170655609,-1354.29,0.00014246,2]
[360969097,1747170655618,-867.68,0.00014246,2]
[360969098,1747170655628,-400.0,0.00014246,2]
[360969099,1747170655638,-3646.13,0.00014246,2]
[360969100,1747170655648,-400.0,0.00014246,2]
[360969101,1747170655657,-400.0,0.00014246,2]
[360969102,1747170655667,-400.0,0.00014246,2]
[360969103,1747170655676,-904.34,0.00014246,2]
[360969104,1747170655685,-657.46,0.00014246,2]
[360969105,1747170655695,-400.0,0.00014246,2]
[360969106,1747170655704,-598.8,0.00014246,2]
[360969107,1747170655714,-1911.68,0.00014246,2]
[360969108,1747170655723,-13527.39,0.00014246,2]
[360969109,1747170655732,-1011.13,0.00014246,2]
[360969110,1747170655742,-400.0,0.00014246,2]
[360969111,1747170655751,-711.21,0.00014246,2]
[360969112,1747170655760,-400.0,0.00014246,2]
[360969113,1747170655769,-1630.66,0.00014246,2]
[360969114,1747170655779,-2167.44,0.00014246,2]
[360969115,1747170655790,-9023.34,0.00014246,2]
[360969116,1747170655800,-4728.2,0.00014246,2]
[360969117,1747170655809,-993.08,0.00014246,2]
[360969118,1747170655819,-431.3,0.00014246,2]
[360969119,1747170655829,-597.91,0.00014246,2]
[360969120,1747170655839,-400.0,0.00014246,2]
[360969121,1747170655848,-400.0,0.00014246,2]
[360969122,1747170655859,-400.0,0.00014246,2]
[360969123,1747170655869,-3149.57,0.00014246,2]
[360969124,1747170655879,-400.0,0.00014246,2]
[360969125,1747170655889,-2481.77,0.00014246,2]
[360969126,1747170655899,-400.0,0.00014246,2]
[360969127,1747170655909,-2324.49,0.00014246,2]
[360969128,1747170655919,-528.12,0.00014246,2]
[360969129,1747170655929,-3078.16,0.00014246,2]
[360969130,1747170655940,-400.0,0.00014246,2]
[360969131,1747170655950,-400.0,0.00014246,2]
[360969132,1747170655960,-400.0,0.00014246,2]
[360969133,1747170655970,-151.0,0.00014246,2]
[360969134,1747170655980,-151.0,0.00014246,2]
[360969135,1747170655990,-151.0,0.00014246,2]
[360969136,1747170656000,-500.0,0.00014246,2]
[360969137,1747170656010,-400.0,0.00014246,2]
[360969138,1747170656020,-539.48,0.00014246,2]
[360969139,1747170656030,-400.0,0.00014246,2]
[360969140,1747170656040,-523.88,0.00014246,2]
[360969141,1747170656051,-400.0,0.00014246,2]
[360969142,1747170656061,-400.0,0.00014246,2]
[360969143,1747170656071,-321.11955532,0.00014246,2]
[360969144,1747170656085,-316.03822774,0.00014246,2]
[360969146,1747170820575,-190.36410232,0.00011,2]
[360969147,1747170822554,-303.41674288,0.00011,2]
[360969148,1747170824125,-172.66059126,0.00011,2]
[360969150,1747171035905,-194.256175,0.0001078,2]
[360969151,1747171039150,-196.47763723,0.0001078,2]
[360969153,1747171040736,-288.16200006,0.0001078,2]
[360969156,1747171044389,-389.20936491,0.0001078,2]
[360969157,1747171047069,-299.22165101,0.0001078,2]
[360969159,1747171050733,-153.0109088,0.0001078,2]
[360969160,1747171055991,-229.90412252,0.0001078,2]
[360969161,1747171058032,-264.0313792,0.0001078,2]
[360969162,1747171060349,-308.21799783,0.0001078,2]
[360969163,1747171061864,-233.35483806,0.0001078,2]
[360969164,1747171063945,-274.6360475,0.0001078,2]
[360969165,1747171065545,-248.55865123,0.0001078,2]
[360969166,1747171068757,-271.01813992,0.0001078,2]
[360969167,1747171071462,-228.98186008,0.0001078,2]
[360969168,1747171072881,-279.79451778,0.0001078,2]
[360969169,1747171078292,-220.20548222,0.0001078,2]
[360969170,1747171079855,-224.59105882,0.0001078,2]
[360969171,1747171086015,-422.33179478,0.0001078,2]
[360969172,1747171088222,-230.9036542,0.0001078,2]
[360969173,1747171091283,-43.13271885,0.0001078,2]
[360969174,1747171091308,-261.63494899,0.00010976,2]
[360969175,1747171096277,-151.70063652,0.00010866,2]
[360969176,1747171098260,-305.42821687,0.00010866,2]
[360969177,1747171100460,-238.10347877,0.00010866,2]
[360969178,1747171103243,-160.25887754,0.00010866,2]
[360969179,1747171105344,-175.77105193,0.00010866,2]
[360969180,1747171108420,-169.91242968,0.00010866,2]
[360969181,1747171111093,-236.4578936,0.00010866,2]
[360969182,1747171114831,-252.05480483,0.00010866,2]
[360969183,1747171116401,-177.77434013,0.00010866,2]
[360969184,1747171120963,-265.72981301,0.00010866,2]
[360969185,1747171279196,-181.0,0.00010757,2]
[360969186,1747171282351,-283.46536939,0.00010757,2]
[360969187,1747171283954,-184.15549261,0.00010757,2]
[360969188,1747171288220,-198.84443814,0.00010757,2]
[360969189,1747171289720,-307.06858814,0.00010757,2]
[360969190,1747171291874,-278.02171983,0.00010757,2]
[360969191,1747171294036,-342.72084089,0.00010757,2]
[360969192,1747171295568,-167.55797143,0.00010757,2]
[360969193,1747171298887,-292.48014679,0.00010757,2]
[360969194,1747171300863,-234.5840292,0.00010757,2]
[360969195,1747171303861,-197.58222326,0.00010757,2]
[360969196,1747171305882,-300.0,0.00010757,2]
[360969197,1747171307508,-374.11715932,0.00010757,2]
[360969198,1747171308929,-329.92664359,0.00010757,2]
[360969199,1747171311057,-170.07335641,0.00010757,2]
[360969200,1747171312637,-327.5457519,0.00010757,2]
[360969201,1747171315319,-170.5166775,0.00010757,2]
[360969202,1747171318454,-282.03890805,0.00010757,2]
[360969203,1747171320646,-245.55683349,0.00010757,2]
[360969204,1747171322659,-132.74385006,0.00010757,2]
[360969205,1747171524270,-154.10567246,0.00010757,2]
[360969206,1747171527087,-181.19864509,0.00010757,2]
[360969207,1747171533830,-181.0,0.00010757,2]
[360969208,1747171535903,-208.71843324,0.00010757,2]
[360969209,1747171539605,-223.5143695,0.00010757,2]
[360969210,1747171541674,-239.19050477,0.00010757,2]
[360969211,1747171543170,-215.51499047,0.00010757,2]
[360969212,1747171544721,-165.48684912,0.00010757,2]
[360969213,1747171548279,-200.02633474,0.00010757,2]
[360969214,1747171550360,-282.19879271,0.00010757,2]
[360969216,1747171628113,-2949.0454079,0.00010757,2]
[360969217,1747171628135,-560.49717111,0.00010976,2]
[360969218,1747171628157,-300.0,0.00010994,2]
[360969219,1747171628179,-500.0,0.00010995,2]
[360969220,1747171628202,-500.0,0.00010995,2]
[360969221,1747171628223,-579.92292125,0.00010995,2]
[360969222,1747171628248,-209.64996231,0.00010995,2]
[360969223,1747171628269,-500.0,0.00010995,2]
[360969224,1747171628291,-500.0,0.00010995,2]
[360969225,1747171628313,-500.0,0.00010995,2]
[360969226,1747171628333,-352.59178478,0.00010995,2]
[360969227,1747171649381,186.394286,0.00010079,120]
[360969228,1747171651394,-186.394286,0.00010079,2]
[360969229,1747171653125,-724.86961386,0.00010885,2]
[360969238,1747171728610,4250.00812349,0.0002,120]
[360969244,1747171751218,-4275.13038614,0.00010885,2]
[360969245,1747171751240,-300.0,0.00010993,2]
[360969246,1747171751261,-500.0,0.00010994,2]
[360969247,1747171751282,-500.0,0.00010994,2]
[360969248,1747171751305,-605.94604488,0.00010994,2]
[360969249,1747171751327,-196.75497361,0.00010994,2]
[360969250,1747171751348,-500.0,0.00010994,2]
[360969251,1747171751371,-500.0,0.00010994,2]
[360969252,1747171751393,-500.0,0.00010994,2]
[360969253,1747171751415,-500.0,0.00010994,2]
[360969254,1747171751435,-500.0,0.00010994,2]
[360969255,1747171751458,-500.0,0.00010994,2]
[360969256,1747171751480,-500.0,0.00010994,2]
[360969257,1747171751502,-396.53947315,0.00010994,2]
[360969258,1747171751524,-500.0,0.00010994,2]
[360969259,1747171751545,-230.41524803,0.00010994,2]
[360969260,1747171751567,-500.0,0.00010994,2]
[360969261,1747171751588,-500.0,0.00010994,2]
[360969262,1747171751609,-500.0,0.00010994,2]
[360969263,1747171751630,-500.0,0.00010994,2]
[360969264,1747171751652,-500.0,0.00010994,2]
[360969265,1747171751674,-170.26399034,0.00010994,2]
[360969266,1747171751695,-500.0,0.00010994,2]
[360969267,1747171751717,-500.0,0.00010994,2]
[360969268,1747171751738,-500.0,0.00010994,2]